[Event "Titled Tuesday Blitz May 24 Late 2022"]
[White "Bibasa, Bob"]
[Black "Rios Escobar, Adan"]
[WhiteFideId "10000240"]
[BlackFideId "3403645"]
[WhiteElo "2032"]
[BlackElo "2400"]
[Result "1-0"]
[Round "09"]
[TimeControl "180+1"]
[Date "2022.05.25"]
[WhiteClock "0:00:34"]
[BlackClock "0:00:03"]

1. e4 {[%clk 0:03:00]}  c5 {[%clk 0:02:00]} 2. Nf3 {[%clk 0:02:58]}  d6 {[%clk 0:02:00]} 3. d4 {[%clk 0:02:59]}  cxd4 {[%clk 0:02:00]} 4. Nxd4 {[%clk 0:03:00]}  Nf6 {[%clk 0:02:00]} 5. f3 {[%clk 0:03:00]}  a5 {[%clk 0:01:54]} 6. Nc3 {[%clk 0:02:56]}  e5 {[%clk 0:01:51]} 7. Ndb5 {[%clk 0:02:54]}  Be7 {[%clk 0:01:49]} 8. Bg5 {[%clk 0:02:50]}  Be6 {[%clk 0:01:48]} 9. Be2 {[%clk 0:02:40]}  O-O {[%clk 0:01:38]} 10. Bxf6 {[%clk 0:02:39]}  gxf6 {[%clk 0:01:37]} 11. O-O {[%clk 0:02:36]}  Nc6 {[%clk 0:01:33]} 12. Kh1 {[%clk 0:02:31]}  f5 {[%clk 0:01:29]} 13. Nd5 {[%clk 0:02:22]}  Nd4 {[%clk 0:01:11]} 14. Nxd4 {[%clk 0:02:18]}  exd4 {[%clk 0:01:07]} 15. Qxd4 {[%clk 0:02:18]}  Bxd5 {[%clk 0:01:06]} 16. Qxd5 {[%clk 0:02:15]}  fxe4 {[%clk 0:01:06]} 17. fxe4 {[%clk 0:02:15]}  a4 {[%clk 0:01:04]} 18. Bh5 {[%clk 0:02:14]}  Ra5 {[%clk 0:00:56]} 19. Bxf7+ {[%clk 0:02:12]}  Kg7 {[%clk 0:00:54]} 20. Qe6 {[%clk 0:02:07]}  Re5 {[%clk 0:00:50]} 21. Qg4+ {[%clk 0:01:48]}  Rg5 {[%clk 0:00:50]} 22. Qf3 {[%clk 0:01:47]}  Bf6 {[%clk 0:00:39]} 23. Bd5 {[%clk 0:01:34]}  Bxb2 {[%clk 0:00:36]} 24. Qxf8+ {[%clk 0:01:34]}  Qxf8 {[%clk 0:00:37]} 25. Rxf8 {[%clk 0:01:34]}  Kxf8 {[%clk 0:00:38]} 26. Rb1 {[%clk 0:01:33]}  a3 {[%clk 0:00:37]} 27. g3 {[%clk 0:01:32]}  Rg6 {[%clk 0:00:33]} 28. Bxb7 {[%clk 0:01:29]}  Rf6 {[%clk 0:00:29]} 29. Kg2 {[%clk 0:01:29]}  Bd4 {[%clk 0:00:28]} 30. Rf1 {[%clk 0:01:27]}  Rxf1 {[%clk 0:00:28]} 31. Kxf1 {[%clk 0:01:28]}  Ke7 {[%clk 0:00:28]} 32. Ke2 {[%clk 0:01:28]}  Kf6 {[%clk 0:00:28]} 33. Kf3 {[%clk 0:01:23]}  h6 {[%clk 0:00:25]} 34. h4 {[%clk 0:01:22]}  Bb2 {[%clk 0:00:22]} 35. Bd5 {[%clk 0:01:17]}  Bc1 {[%clk 0:00:22]} 36. Kg4 {[%clk 0:01:16]}  Bd2 {[%clk 0:00:22]} 37. Kh5 {[%clk 0:01:15]}  Bc1 {[%clk 0:00:22]} 38. g4 {[%clk 0:01:16]}  Be3 {[%clk 0:00:22]} 39. c4 {[%clk 0:01:13]}  Bf4 {[%clk 0:00:19]} 40. Bc6 {[%clk 0:00:55]}  Be3 {[%clk 0:00:19]} 41. e5+ {[%clk 0:00:48]}  dxe5 {[%clk 0:00:18]} 42. Be4 {[%clk 0:00:48]}  Kg7 {[%clk 0:00:09]} 43. g5 {[%clk 0:00:48]}  hxg5 {[%clk 0:00:10]} 44. hxg5 {[%clk 0:00:49]}  Bc5 {[%clk 0:00:08]} 45. Kg4 {[%clk 0:00:48]}  Bd4 {[%clk 0:00:08]} 46. Kf5 {[%clk 0:00:49]}  Kf7 {[%clk 0:00:07]} 47. Bd5+ {[%clk 0:00:47]}  Kg7 {[%clk 0:00:05]} 48. Bf3 {[%clk 0:00:40]}  Kf7 {[%clk 0:00:06]} 49. Bh5+ {[%clk 0:00:40]}  Kg7 {[%clk 0:00:06]} 50. Ke6 {[%clk 0:00:40]}  e4 {[%clk 0:00:06]} 51. Kd5 {[%clk 0:00:41]}  Be3 {[%clk 0:00:06]} 52. g6 {[%clk 0:00:40]}  Kh6 {[%clk 0:00:04]} 53. Kxe4 {[%clk 0:00:39]}  Bc5 {[%clk 0:00:04]} 54. Kd5 {[%clk 0:00:37]}  Be7 {[%clk 0:00:02]} 55. c5 {[%clk 0:00:33]}  Bd8 {[%clk 0:00:01]} 56. c6 {[%clk 0:00:33]}  Bc7 {[%clk 0:00:02]} 57. Ke6 {[%clk 0:00:33]}  Kg7 {[%clk 0:00:01]} 58. Kd7 {[%clk 0:00:34]}  Be5 {[%clk 0:00:02]} 59. c7 {[%clk 0:00:34]}  Bxc7 {[%clk 0:00:01]} 60. Kxc7 {[%clk 0:00:34]}  Kh6 {[%clk 0:00:02]} 61. Kb6 {[%clk 0:00:34]}  Kg7 {[%clk 0:00:03]} 62. Kb5 {[%clk 0:00:34]} 1-0


[Site "https://www.chess.com"]

[Event "Titled Tuesday Blitz May 24 Late 2022"]
[White "Bluebaum, Matthias"]
[Black "Drygalov, Andrey"]
[WhiteFideId "24651516"]
[BlackFideId "24171735"]
[WhiteElo "2556"]
[BlackElo "2540"]
[Result "0-1"]
[Round "09"]
[TimeControl "180+1"]
[Date "2022.05.24"]
[WhiteClock "0:00:07"]
[BlackClock "0:00:15"]

1. d4 {[%clk 0:03:00]}  Nf6 {[%clk 0:02:59]} 2. c4 {[%clk 0:02:59]}  e6 {[%clk 0:02:59]} 3. Nc3 {[%clk 0:03:00]}  Bb4 {[%clk 0:03:00]} 4. e3 {[%clk 0:03:01]}  O-O {[%clk 0:02:59]} 5. Bd3 {[%clk 0:03:01]}  d5 {[%clk 0:02:59]} 6. cxd5 {[%clk 0:03:02]}  exd5 {[%clk 0:02:59]} 7. a3 {[%clk 0:03:03]}  Bd6 {[%clk 0:02:57]} 8. Qc2 {[%clk 0:03:03]}  c6 {[%clk 0:02:57]} 9. Nge2 {[%clk 0:03:03]}  Re8 {[%clk 0:02:57]} 10. Bd2 {[%clk 0:03:04]}  Na6 {[%clk 0:02:49]} 11. O-O {[%clk 0:02:58]}  Nc7 {[%clk 0:02:48]} 12. Rad1 {[%clk 0:02:56]}  b6 {[%clk 0:02:42]} 13. f3 {[%clk 0:02:55]}  c5 {[%clk 0:02:42]} 14. Qc1 {[%clk 0:02:46]}  Bd7 {[%clk 0:02:35]} 15. Be1 {[%clk 0:02:45]}  Ne6 {[%clk 0:02:33]} 16. Bh4 {[%clk 0:02:43]}  Bc6 {[%clk 0:02:13]} 17. Kh1 {[%clk 0:02:36]}  cxd4 {[%clk 0:02:07]} 18. Nxd4 {[%clk 0:02:33]}  Nxd4 {[%clk 0:02:07]} 19. exd4 {[%clk 0:02:33]}  h6 {[%clk 0:02:02]} 20. Rfe1 {[%clk 0:02:25]}  Rxe1+ {[%clk 0:01:46]} 21. Rxe1 {[%clk 0:02:26]}  Bf8 {[%clk 0:01:39]} 22. Ba6 {[%clk 0:02:04]}  Qd6 {[%clk 0:01:37]} 23. Nb5 {[%clk 0:01:59]}  Qd7 {[%clk 0:01:35]} 24. a4 {[%clk 0:01:51]}  Ne8 {[%clk 0:01:14]} 25. Bg3 {[%clk 0:01:45]}  Nd6 {[%clk 0:01:14]} 26. Nxd6 {[%clk 0:01:29]}  Bxd6 {[%clk 0:01:12]} 27. b3 {[%clk 0:01:30]}  Bxg3 {[%clk 0:01:09]} 28. hxg3 {[%clk 0:01:31]}  Re8 {[%clk 0:01:10]} 29. Rxe8+ {[%clk 0:01:26]}  Qxe8 {[%clk 0:01:10]} 30. Kh2 {[%clk 0:01:24]}  g5 {[%clk 0:00:52]} 31. Bd3 {[%clk 0:01:13]}  Qe6 {[%clk 0:00:52]} 32. g4 {[%clk 0:01:03]}  Kg7 {[%clk 0:00:50]} 33. Qd2 {[%clk 0:00:51]}  Bd7 {[%clk 0:00:48]} 34. Kg1 {[%clk 0:00:45]}  Qd6 {[%clk 0:00:45]} 35. a5 {[%clk 0:00:43]}  Qa3 {[%clk 0:00:42]} 36. axb6 {[%clk 0:00:42]}  axb6 {[%clk 0:00:43]} 37. Bc2 {[%clk 0:00:32]}  Bb5 {[%clk 0:00:32]} 38. Qe3 {[%clk 0:00:31]}  Qd6 {[%clk 0:00:31]} 39. Kf2 {[%clk 0:00:28]}  Qe6 {[%clk 0:00:27]} 40. Qd2 {[%clk 0:00:11]}  Qf6 {[%clk 0:00:23]} 41. g3 {[%clk 0:00:11]}  Bd7 {[%clk 0:00:22]} 42. Kg2 {[%clk 0:00:10]}  Bb5 {[%clk 0:00:19]} 43. Qe3 {[%clk 0:00:10]}  Qe6 {[%clk 0:00:19]} 44. Qe5+ {[%clk 0:00:08]}  Qxe5 {[%clk 0:00:16]} 45. dxe5 {[%clk 0:00:09]}  Bd7 {[%clk 0:00:16]} 46. Bf5 {[%clk 0:00:07]}  Bxf5 {[%clk 0:00:12]} 47. gxf5 {[%clk 0:00:08]}  h5 {[%clk 0:00:13]} 48. f4 {[%clk 0:00:03]}  gxf4 {[%clk 0:00:13]} 49. gxf4 {[%clk 0:00:04]}  d4 {[%clk 0:00:12]} 50. Kf3 {[%clk 0:00:05]}  h4 {[%clk 0:00:12]} 51. Ke4 {[%clk 0:00:04]}  h3 {[%clk 0:00:13]} 52. f6+ {[%clk 0:00:03]}  Kf8 {[%clk 0:00:12]} 53. f5 {[%clk 0:00:03]}  h2 {[%clk 0:00:13]} 54. e6 {[%clk 0:00:04]}  h1=Q+ {[%clk 0:00:13]} 55. Ke5 {[%clk 0:00:05]}  Qc6 {[%clk 0:00:13]} 56. e7+ {[%clk 0:00:05]}  Ke8 {[%clk 0:00:14]} 57. Kf4 {[%clk 0:00:06]}  Qxf6 {[%clk 0:00:14]} 58. Kg4 {[%clk 0:00:07]}  Kxe7 {[%clk 0:00:15]} 0-1


[Site "https://www.chess.com"]

[Event "Titled Tuesday Blitz May 24 Late 2022"]
[White "Bonte, Andrei-Mihai"]
[Black "Mikhalsky, Vladimir"]
[WhiteFideId "1210297"]
[BlackFideId "14144352"]
[WhiteElo "2192"]
[BlackElo "2301"]
[Result "0-1"]
[Round "09"]
[TimeControl "180+1"]
[Date "2022.05.25"]
[WhiteClock "0:00:38"]
[BlackClock "0:00:41"]

1. d4 {[%clk 0:03:00]}  Nf6 {[%clk 0:02:55]} 2. c4 {[%clk 0:02:59]}  g6 {[%clk 0:02:55]} 3. Nc3 {[%clk 0:02:58]}  Bg7 {[%clk 0:02:55]} 4. e4 {[%clk 0:02:58]}  O-O {[%clk 0:02:55]} 5. Nf3 {[%clk 0:02:57]}  d6 {[%clk 0:02:54]} 6. Be2 {[%clk 0:02:57]}  e5 {[%clk 0:02:54]} 7. O-O {[%clk 0:02:57]}  Nc6 {[%clk 0:02:53]} 8. d5 {[%clk 0:02:56]}  Ne7 {[%clk 0:02:53]} 9. Nh4 {[%clk 0:02:55]}  Nd7 {[%clk 0:02:51]} 10. g3 {[%clk 0:02:54]}  f5 {[%clk 0:02:50]} 11. exf5 {[%clk 0:02:53]}  gxf5 {[%clk 0:02:50]} 12. f4 {[%clk 0:02:52]}  e4 {[%clk 0:02:48]} 13. Be3 {[%clk 0:02:51]}  Ng6 {[%clk 0:02:45]} 14. Ng2 {[%clk 0:02:49]}  a5 {[%clk 0:02:42]} 15. Qd2 {[%clk 0:02:48]}  Nc5 {[%clk 0:02:41]} 16. Rac1 {[%clk 0:02:40]}  a4 {[%clk 0:02:40]} 17. Rb1 {[%clk 0:02:34]}  Bd7 {[%clk 0:02:36]} 18. Rfc1 {[%clk 0:02:29]}  Qf6 {[%clk 0:02:32]} 19. Ne1 {[%clk 0:02:18]}  a3 {[%clk 0:02:04]} 20. b4 {[%clk 0:02:04]}  Na4 {[%clk 0:02:04]} 21. Nxa4 {[%clk 0:02:01]}  Rxa4 {[%clk 0:02:02]} 22. Nc2 {[%clk 0:01:43]}  Rf7 {[%clk 0:01:35]} 23. Bd4 {[%clk 0:01:35]}  Qe7 {[%clk 0:01:34]} 24. Ne3 {[%clk 0:01:35]}  Bxd4 {[%clk 0:01:28]} 25. Qxd4 {[%clk 0:01:34]}  Rg7 {[%clk 0:01:29]} 26. Kh1 {[%clk 0:01:26]}  b6 {[%clk 0:01:18]} 27. Rc3 {[%clk 0:01:16]}  Ra8 {[%clk 0:01:02]} 28. Nc2 {[%clk 0:01:12]}  h5 {[%clk 0:00:52]} 29. Bxh5 {[%clk 0:01:09]}  Kf7 {[%clk 0:00:52]} 30. g4 {[%clk 0:00:40]}  Rh8 {[%clk 0:00:48]} 31. Rh3 {[%clk 0:00:38]}  Kg8 {[%clk 0:00:41]} 0-1


[Site "https://www.chess.com"]

[Event "Titled Tuesday Blitz May 24 Late 2022"]
[White "Curtis, John"]
[Black "Gomez Dieguez, David"]
[WhiteFideId "3200256"]
[BlackFideId "22223630"]
[WhiteElo "2203"]
[BlackElo "2115"]
[Result "0-1"]
[Round "09"]
[TimeControl "180+1"]
[Date "2022.05.25"]
[WhiteClock "0:00:01"]
[BlackClock "0:00:21"]

1. b3 {[%clk 0:03:00]}  d5 {[%clk 0:02:59]} 2. Bb2 {[%clk 0:02:55]}  Nf6 {[%clk 0:02:59]} 3. e3 {[%clk 0:02:55]}  Bf5 {[%clk 0:02:59]} 4. Nf3 {[%clk 0:02:53]}  e6 {[%clk 0:02:59]} 5. Be2 {[%clk 0:02:50]}  h6 {[%clk 0:02:59]} 6. O-O {[%clk 0:02:51]}  Be7 {[%clk 0:02:59]} 7. c4 {[%clk 0:02:51]}  c6 {[%clk 0:02:58]} 8. d4 {[%clk 0:02:47]}  O-O {[%clk 0:02:58]} 9. Nc3 {[%clk 0:02:42]}  Nbd7 {[%clk 0:02:57]} 10. Ne5 {[%clk 0:02:40]}  Rc8 {[%clk 0:02:54]} 11. Nxd7 {[%clk 0:02:24]}  Qxd7 {[%clk 0:02:53]} 12. Qc1 {[%clk 0:02:21]}  Ne4 {[%clk 0:02:47]} 13. Nxe4 {[%clk 0:02:16]}  Bxe4 {[%clk 0:02:48]} 14. Ba3 {[%clk 0:02:15]}  a5 {[%clk 0:02:40]} 15. Bxe7 {[%clk 0:02:14]}  Qxe7 {[%clk 0:02:41]} 16. Qc3 {[%clk 0:02:11]}  Qb4 {[%clk 0:02:39]} 17. Qxb4 {[%clk 0:02:10]}  axb4 {[%clk 0:02:40]} 18. a3 {[%clk 0:02:10]}  Bc2 {[%clk 0:02:16]} 19. axb4 {[%clk 0:02:09]}  Bxb3 {[%clk 0:02:13]} 20. c5 {[%clk 0:02:06]}  Ra8 {[%clk 0:02:08]} 21. Rfb1 {[%clk 0:02:05]}  Bc2 {[%clk 0:02:04]} 22. Rc1 {[%clk 0:02:05]}  Bg6 {[%clk 0:01:54]} 23. Kf1 {[%clk 0:02:00]}  f6 {[%clk 0:01:53]} 24. Ke1 {[%clk 0:01:59]}  e5 {[%clk 0:01:54]} 25. Kd2 {[%clk 0:01:59]}  exd4 {[%clk 0:01:53]} 26. exd4 {[%clk 0:01:59]}  Kf7 {[%clk 0:01:48]} 27. b5 {[%clk 0:01:53]}  Bf5 {[%clk 0:01:26]} 28. Bh5+ {[%clk 0:01:41]}  g6 {[%clk 0:01:23]} 29. Be2 {[%clk 0:01:41]}  Rfe8 {[%clk 0:01:21]} 30. f3 {[%clk 0:01:37]}  g5 {[%clk 0:01:19]} 31. Bf1 {[%clk 0:01:28]}  h5 {[%clk 0:01:08]} 32. b6 {[%clk 0:01:25]}  h4 {[%clk 0:00:58]} 33. Ra7 {[%clk 0:01:05]}  Rab8 {[%clk 0:00:56]} 34. Rc3 {[%clk 0:00:47]}  Re7 {[%clk 0:00:49]} 35. Re3 {[%clk 0:00:41]}  Rxe3 {[%clk 0:00:45]} 36. Kxe3 {[%clk 0:00:41]}  Ke6 {[%clk 0:00:45]} 37. g4 {[%clk 0:00:36]}  Bc2 {[%clk 0:00:42]} 38. f4 {[%clk 0:00:33]}  Kd7 {[%clk 0:00:40]} 39. f5 {[%clk 0:00:29]}  Be4 {[%clk 0:00:38]} 40. Be2 {[%clk 0:00:27]}  Bg2 {[%clk 0:00:34]} 41. Kf2 {[%clk 0:00:26]}  Be4 {[%clk 0:00:34]} 42. Ra3 {[%clk 0:00:26]}  Re8 {[%clk 0:00:31]} 43. Re3 {[%clk 0:00:20]}  Ra8 {[%clk 0:00:28]} 44. Rc3 {[%clk 0:00:15]}  Ra4 {[%clk 0:00:27]} 45. Ke3 {[%clk 0:00:15]}  Ra1 {[%clk 0:00:26]} 46. Kf2 {[%clk 0:00:12]}  Ra2 {[%clk 0:00:26]} 47. h3 {[%clk 0:00:11]}  Rd2 {[%clk 0:00:26]} 48. Ke3 {[%clk 0:00:11]}  Ra2 {[%clk 0:00:26]} 49. Bd3 {[%clk 0:00:11]}  Bg2 {[%clk 0:00:21]} 50. Bb1 {[%clk 0:00:07]}  Ra5 {[%clk 0:00:19]} 51. Bd3 {[%clk 0:00:03]}  Bxh3 {[%clk 0:00:19]} 52. Be2 {[%clk 0:00:03]}  Bg2 {[%clk 0:00:19]} 53. Kf2 {[%clk 0:00:03]}  Be4 {[%clk 0:00:19]} 54. Rh3 {[%clk 0:00:02]}  Ra4 {[%clk 0:00:19]} 55. Ke3 {[%clk 0:00:01]}  Ra3+ {[%clk 0:00:19]} 56. Bd3 {[%clk 0:00:01]}  Rxd3+ {[%clk 0:00:19]} 57. Ke2 {[%clk 0:00:01]}  Rxh3 {[%clk 0:00:20]} 58. Kf2 {[%clk 0:00:01]}  Rg3 {[%clk 0:00:21]} 0-1


[Site "https://www.chess.com"]

[Event "Titled Tuesday Blitz May 24 Late 2022"]
[White "Drygalov, Sergey"]
[Black "Tristan, Leonardo"]
[WhiteFideId "24171743"]
[BlackFideId "113816"]
[WhiteElo "2514"]
[BlackElo "2404"]
[Result "1/2-1/2"]
[Round "09"]
[TimeControl "180+1"]
[Date "2022.05.24"]
[WhiteClock "0:00:28"]
[BlackClock "0:00:05"]

1. d4 {[%clk 0:02:59]}  d5 {[%clk 0:02:59]} 2. c4 {[%clk 0:02:59]}  e6 {[%clk 0:03:00]} 3. Nf3 {[%clk 0:03:00]}  Nf6 {[%clk 0:03:00]} 4. Nc3 {[%clk 0:03:00]}  a6 {[%clk 0:03:00]} 5. cxd5 {[%clk 0:03:00]}  exd5 {[%clk 0:03:00]} 6. Bg5 {[%clk 0:03:00]}  Be6 {[%clk 0:03:01]} 7. Bxf6 {[%clk 0:02:59]}  Qxf6 {[%clk 0:03:00]} 8. Qb3 {[%clk 0:03:00]}  Ra7 {[%clk 0:03:01]} 9. h4 {[%clk 0:02:59]}  h6 {[%clk 0:02:57]} 10. g3 {[%clk 0:02:47]}  Qd8 {[%clk 0:02:57]} 11. Bg2 {[%clk 0:02:43]}  c6 {[%clk 0:02:56]} 12. O-O {[%clk 0:02:42]}  Be7 {[%clk 0:02:52]} 13. Qc2 {[%clk 0:02:42]}  O-O {[%clk 0:02:51]} 14. Rad1 {[%clk 0:02:40]}  Nd7 {[%clk 0:02:51]} 15. Rfe1 {[%clk 0:02:35]}  Ra8 {[%clk 0:02:51]} 16. Nd2 {[%clk 0:02:35]}  Nf6 {[%clk 0:02:48]} 17. Nb3 {[%clk 0:02:34]}  Qc8 {[%clk 0:02:32]} 18. Nc5 {[%clk 0:02:32]}  Bf5 {[%clk 0:02:32]} 19. e4 {[%clk 0:02:31]}  dxe4 {[%clk 0:02:32]} 20. N3xe4 {[%clk 0:02:26]}  Bxc5 {[%clk 0:02:09]} 21. Nxf6+ {[%clk 0:02:25]}  gxf6 {[%clk 0:02:02]} 22. Qxc5 {[%clk 0:02:26]}  Kg7 {[%clk 0:01:55]} 23. d5 {[%clk 0:02:25]}  cxd5 {[%clk 0:01:55]} 24. Qxd5 {[%clk 0:02:25]}  Be6 {[%clk 0:01:41]} 25. Qd3 {[%clk 0:02:18]}  Qc7 {[%clk 0:01:35]} 26. Rc1 {[%clk 0:02:13]}  Qb6 {[%clk 0:01:35]} 27. b3 {[%clk 0:02:13]}  Rad8 {[%clk 0:01:35]} 28. Qc3 {[%clk 0:02:13]}  Rd7 {[%clk 0:01:25]} 29. Re3 {[%clk 0:02:05]}  Qd6 {[%clk 0:01:24]} 30. Rf3 {[%clk 0:01:58]}  Qe5 {[%clk 0:01:24]} 31. Re3 {[%clk 0:01:56]}  Qxc3 {[%clk 0:01:20]} 32. Rexc3 {[%clk 0:01:56]}  Rfd8 {[%clk 0:00:59]} 33. a3 {[%clk 0:01:47]}  Rd1+ {[%clk 0:00:50]} 34. Rxd1 {[%clk 0:01:47]}  Rxd1+ {[%clk 0:00:51]} 35. Kh2 {[%clk 0:01:47]}  Bd5 {[%clk 0:00:48]} 36. Bxd5 {[%clk 0:01:39]}  Rxd5 {[%clk 0:00:48]} 37. Kg2 {[%clk 0:01:39]}  b5 {[%clk 0:00:42]} 38. Kf3 {[%clk 0:01:39]}  a5 {[%clk 0:00:40]} 39. Ke3 {[%clk 0:01:38]}  h5 {[%clk 0:00:36]} 40. b4 {[%clk 0:01:38]}  a4 {[%clk 0:00:34]} 41. f4 {[%clk 0:01:27]}  Kg6 {[%clk 0:00:31]} 42. Ke4 {[%clk 0:01:24]}  Rd1 {[%clk 0:00:26]} 43. Re3 {[%clk 0:01:04]}  Rc1 {[%clk 0:00:16]} 44. Kd4 {[%clk 0:01:02]}  Kf5 {[%clk 0:00:15]} 45. Kd5 {[%clk 0:00:58]}  Kg4 {[%clk 0:00:14]} 46. Kd6 {[%clk 0:00:59]}  f5 {[%clk 0:00:13]} 47. Ke7 {[%clk 0:00:57]}  Rb1 {[%clk 0:00:13]} 48. Kxf7 {[%clk 0:00:52]}  Rb3 {[%clk 0:00:13]} 49. Re5 {[%clk 0:00:52]}  Rxa3 {[%clk 0:00:14]} 50. Rxb5 {[%clk 0:00:52]}  Rxg3 {[%clk 0:00:14]} 51. Kf6 {[%clk 0:00:53]}  Rf3 {[%clk 0:00:13]} 52. Rxf5 {[%clk 0:00:50]}  a3 {[%clk 0:00:10]} 53. Ra5 {[%clk 0:00:49]}  Rxf4+ {[%clk 0:00:10]} 54. Kg6 {[%clk 0:00:49]}  Rxb4 {[%clk 0:00:10]} 55. Rxa3 {[%clk 0:00:50]}  Rb6+ {[%clk 0:00:10]} 56. Kf7 {[%clk 0:00:48]}  Kxh4 {[%clk 0:00:11]} 57. Ra4+ {[%clk 0:00:48]}  Kg3 {[%clk 0:00:11]} 58. Ra3+ {[%clk 0:00:49]}  Kg4 {[%clk 0:00:11]} 59. Ra4+ {[%clk 0:00:49]}  Kg5 {[%clk 0:00:11]} 60. Ra5+ {[%clk 0:00:50]}  Kh6 {[%clk 0:00:12]} 61. Ra4 {[%clk 0:00:49]}  Rg6 {[%clk 0:00:10]} 62. Ra5 {[%clk 0:00:28]}  h4 {[%clk 0:00:09]} 63. Ra4 {[%clk 0:00:28]}  Kh5 {[%clk 0:00:04]} 64. Rxh4+ {[%clk 0:00:28]}  Kxh4 {[%clk 0:00:05]} 65. Kxg6 {[%clk 0:00:28]} 1/2-1/2


[Site "https://www.chess.com"]

[Event "Titled Tuesday Blitz May 24 Late 2022"]
[White "Gatterer, Florian"]
[Black "Halak, Miklos"]
[WhiteFideId "811688"]
[BlackFideId "726400"]
[WhiteElo "2218"]
[BlackElo "2197"]
[Result "1/2-1/2"]
[Round "09"]
[TimeControl "180+1"]
[Date "2022.05.25"]
[WhiteClock "0:00:03"]
[BlackClock "0:00:10"]

1. f4 {[%clk 0:03:00]}  Nh6 {[%clk 0:02:58]} 2. Nf3 {[%clk 0:02:57]}  g6 {[%clk 0:02:58]} 3. g3 {[%clk 0:02:56]}  Bg7 {[%clk 0:02:57]} 4. Bg2 {[%clk 0:02:56]}  d5 {[%clk 0:02:58]} 5. O-O {[%clk 0:02:54]}  O-O {[%clk 0:02:57]} 6. d3 {[%clk 0:02:55]}  d4 {[%clk 0:02:56]} 7. c4 {[%clk 0:02:51]}  c5 {[%clk 0:02:53]} 8. b4 {[%clk 0:02:47]}  cxb4 {[%clk 0:02:51]} 9. a3 {[%clk 0:02:47]}  bxa3 {[%clk 0:02:51]} 10. Nxa3 {[%clk 0:02:47]}  Nc6 {[%clk 0:02:48]} 11. Nc2 {[%clk 0:02:43]}  Nf5 {[%clk 0:02:47]} 12. g4 {[%clk 0:02:32]}  Ne3 {[%clk 0:02:45]} 13. Nxe3 {[%clk 0:02:32]}  dxe3 {[%clk 0:02:45]} 14. Bxe3 {[%clk 0:02:24]}  Bxa1 {[%clk 0:02:41]} 15. Qxa1 {[%clk 0:02:25]}  Bxg4 {[%clk 0:02:41]} 16. f5 {[%clk 0:02:20]}  Bxf5 {[%clk 0:02:34]} 17. Bh6 {[%clk 0:02:17]}  f6 {[%clk 0:02:33]} 18. Bxf8 {[%clk 0:02:00]}  Qxf8 {[%clk 0:02:32]} 19. e4 {[%clk 0:01:58]}  Bd7 {[%clk 0:02:30]} 20. d4 {[%clk 0:01:56]}  a5 {[%clk 0:02:23]} 21. e5 {[%clk 0:01:56]}  Nb4 {[%clk 0:02:11]} 22. exf6 {[%clk 0:01:44]}  exf6 {[%clk 0:02:09]} 23. Ng5 {[%clk 0:01:44]}  Bf5 {[%clk 0:01:38]} 24. Nf3 {[%clk 0:00:58]}  Nc2 {[%clk 0:01:30]} 25. Qc3 {[%clk 0:00:55]}  Qh6 {[%clk 0:01:22]} 26. Kh1 {[%clk 0:00:35]}  Ne3 {[%clk 0:01:18]} 27. Qd2 {[%clk 0:00:31]}  Kg7 {[%clk 0:01:17]} 28. Re1 {[%clk 0:00:29]}  Ng4 {[%clk 0:00:41]} 29. Re7+ {[%clk 0:00:27]}  Kf8 {[%clk 0:00:37]} 30. Qe1 {[%clk 0:00:27]}  Rd8 {[%clk 0:00:09]} 31. h3 {[%clk 0:00:26]}  Qh5 {[%clk 0:00:07]} 32. Kg1 {[%clk 0:00:24]}  Nh6 {[%clk 0:00:06]} 33. Rxb7 {[%clk 0:00:18]}  Re8 {[%clk 0:00:06]} 34. Qxa5 {[%clk 0:00:16]}  Bxh3 {[%clk 0:00:05]} 35. Qc5+ {[%clk 0:00:16]}  Qxc5 {[%clk 0:00:05]} 36. dxc5 {[%clk 0:00:16]}  Bxg2 {[%clk 0:00:06]} 37. Kxg2 {[%clk 0:00:16]}  Rc8 {[%clk 0:00:06]} 38. Rb5 {[%clk 0:00:13]}  Nf5 {[%clk 0:00:06]} 39. Kf2 {[%clk 0:00:09]}  h5 {[%clk 0:00:06]} 40. Nd2 {[%clk 0:00:09]}  h4 {[%clk 0:00:06]} 41. Ne4 {[%clk 0:00:09]}  Kf7 {[%clk 0:00:06]} 42. Rb7+ {[%clk 0:00:09]}  Ke6 {[%clk 0:00:06]} 43. Rb6+ {[%clk 0:00:08]}  Ke5 {[%clk 0:00:06]} 44. Nxf6 {[%clk 0:00:09]}  Kf4 {[%clk 0:00:05]} 45. Nd5+ {[%clk 0:00:08]}  Kg5 {[%clk 0:00:04]} 46. c6 {[%clk 0:00:06]}  Nd4 {[%clk 0:00:04]} 47. c7 {[%clk 0:00:03]}  Ne6 {[%clk 0:00:04]} 48. Rb8 {[%clk 0:00:02]}  Rxc7 {[%clk 0:00:03]} 49. Nxc7 {[%clk 0:00:02]}  Nxc7 {[%clk 0:00:04]} 50. c5 {[%clk 0:00:01]}  Ne6 {[%clk 0:00:05]} 51. c6 {[%clk 0:00:01]}  h3 {[%clk 0:00:04]} 52. Rc8 {[%clk 0:00:02]}  Kf6 {[%clk 0:00:04]} 53. c7 {[%clk 0:00:02]}  Ke7 {[%clk 0:00:04]} 54. Re8+ {[%clk 0:00:02]}  Kxe8 {[%clk 0:00:03]} 55. c8=Q+ {[%clk 0:00:03]}  Kf7 {[%clk 0:00:03]} 56. Qd7+ {[%clk 0:00:03]}  Kf6 {[%clk 0:00:03]} 57. Kg3 {[%clk 0:00:03]}  Kf5 {[%clk 0:00:04]} 58. Kxh3 {[%clk 0:00:03]}  g5 {[%clk 0:00:05]} 59. Kh2 {[%clk 0:00:03]}  Ke5 {[%clk 0:00:05]} 60. Qe8 {[%clk 0:00:03]}  Kf4 {[%clk 0:00:06]} 61. Kh1 {[%clk 0:00:04]}  Kf5 {[%clk 0:00:07]} 62. Qf7+ {[%clk 0:00:04]}  Ke5 {[%clk 0:00:07]} 63. Kg1 {[%clk 0:00:04]}  Nf4 {[%clk 0:00:07]} 64. Kf2 {[%clk 0:00:04]}  Ne6 {[%clk 0:00:07]} 65. Kf3 {[%clk 0:00:02]}  Nd4+ {[%clk 0:00:07]} 66. Kg4 {[%clk 0:00:03]}  Ne6 {[%clk 0:00:07]} 67. Qe7 {[%clk 0:00:02]}  Kd5 {[%clk 0:00:07]} 68. Qf7 {[%clk 0:00:02]}  Ke5 {[%clk 0:00:07]} 69. Qe7 {[%clk 0:00:02]}  Kd5 {[%clk 0:00:08]} 70. Kf5 {[%clk 0:00:02]}  Nd4+ {[%clk 0:00:08]} 71. Kxg5 {[%clk 0:00:03]}  Ne6+ {[%clk 0:00:09]} 72. Kf6 {[%clk 0:00:03]}  Nd4 {[%clk 0:00:10]} 73. Qf7+ {[%clk 0:00:03]}  Kc5 {[%clk 0:00:09]} 74. Qh5+ {[%clk 0:00:03]}  Kc4 {[%clk 0:00:09]} 75. Qe5 {[%clk 0:00:03]}  Kd3 {[%clk 0:00:10]} 76. Qxd4+ {[%clk 0:00:03]}  Kxd4 {[%clk 0:00:10]} 1/2-1/2


[Site "https://www.chess.com"]